[Event "Titled Tuesday Blitz July 18 Late 2023"]
[White "Kramnik, Vladimir"]
[Black "Duda, Jan-Krzysztof"]
[WhiteFideId "4101588"]
[BlackFideId "1170546"]
[WhiteElo "2974"]
[BlackElo "3016"]
[Result "1-0"]
[Round "9"]
[TimeControl "180+2"]
[Date "2023.07.18"]
[WhiteClock "0:00:06"]
[BlackClock "0:00:00"]
[Board "6"]

1. e4 {[%clk 0:03:00]}  c5 {[%clk 0:02:57]} 2. Nf3 {[%clk 0:03:01]}  d6 {[%clk 0:02:58]} 3. d4 {[%clk 0:03:00]}  cxd4 {[%clk 0:02:58]} 4. Nxd4 {[%clk 0:03:00]}  Nf6 {[%clk 0:02:59]} 5. Nc3 {[%clk 0:03:00]}  a6 {[%clk 0:02:59]} 6. Bc4 {[%clk 0:03:00]}  e6 {[%clk 0:02:58]} 7. Be3 {[%clk 0:02:59]}  Be7 {[%clk 0:02:55]} 8. Bb3 {[%clk 0:02:58]}  O-O {[%clk 0:02:50]} 9. g4 {[%clk 0:02:58]}  Nfd7 {[%clk 0:02:23]} 10. h4 {[%clk 0:02:26]}  Nc5 {[%clk 0:02:23]} 11. g5 {[%clk 0:02:13]}  b5 {[%clk 0:02:22]} 12. Qg4 {[%clk 0:02:03]}  Nbd7 {[%clk 0:01:47]} 13. O-O-O {[%clk 0:01:40]}  Ne5 {[%clk 0:01:36]} 14. Qg3 {[%clk 0:01:39]}  b4 {[%clk 0:01:11]} 15. Na4 {[%clk 0:01:25]}  Nxe4 {[%clk 0:01:02]} 16. Qg2 {[%clk 0:01:23]}  d5 {[%clk 0:01:03]} 17. f4 {[%clk 0:01:19]}  Nd7 {[%clk 0:00:56]} 18. h5 {[%clk 0:01:10]}  Bb7 {[%clk 0:00:53]} 19. g6 {[%clk 0:01:07]}  Bf6 {[%clk 0:00:50]} 20. gxf7+ {[%clk 0:01:02]}  Rxf7 {[%clk 0:00:47]} 21. Nxe6 {[%clk 0:00:56]}  Qa5 {[%clk 0:00:26]} 22. Bd4 {[%clk 0:00:42]}  Re8 {[%clk 0:00:20]} 23. Ng5 {[%clk 0:00:33]}  Nxg5 {[%clk 0:00:10]} 24. fxg5 {[%clk 0:00:32]}  Bxd4 {[%clk 0:00:09]} 25. Rxd4 {[%clk 0:00:33]}  Rf5 {[%clk 0:00:07]} 26. Rhd1 {[%clk 0:00:24]}  Ree5 {[%clk 0:00:04]} 27. g6 {[%clk 0:00:19]}  h6 {[%clk 0:00:04]} 28. Kb1 {[%clk 0:00:17]}  Nf6 {[%clk 0:00:05]} 29. c4 {[%clk 0:00:11]}  bxc3 {[%clk 0:00:04]} 30. Nxc3 {[%clk 0:00:11]}  Rxh5 {[%clk 0:00:05]} 31. Qd2 {[%clk 0:00:09]}  Rhg5 {[%clk 0:00:04]} 32. Nxd5 {[%clk 0:00:07]}  Qxd2 {[%clk 0:00:03]} 33. Nxf6+ {[%clk 0:00:07]}  Kf8 {[%clk 0:00:03]} 34. Nh7+ {[%clk 0:00:06]}  Ke7 {[%clk 0:00:03]} 35. R4xd2 {[%clk 0:00:06]}  Be4+ {[%clk 0:00:00]} 36. Ka1 {[%clk 0:00:06]} 1-0


[Site "https://www.chess.com"]

[Event "Titled Tuesday Blitz July 18 Late 2023"]
[White "Nguyen, Ngoc Truong Son"]
[Black "Nihal Sarin"]
[WhiteFideId "12401110"]
[BlackFideId "25092340"]
[WhiteElo "2865"]
[BlackElo "3056"]
[Result "1-0"]
[Round "9"]
[TimeControl "180+2"]
[Date "2023.07.18"]
[WhiteClock "0:02:22"]
[BlackClock "0:00:26"]
[Board "8"]

1. e4 {[%clk 0:03:00]}  a6 {[%clk 0:03:00]} 2. Nf3 {[%clk 0:03:01]}  c6 {[%clk 0:02:51]} 3. c4 {[%clk 0:03:00]}  d5 {[%clk 0:02:49]} 4. cxd5 {[%clk 0:03:00]}  cxd5 {[%clk 0:02:50]} 5. exd5 {[%clk 0:03:01]}  Nf6 {[%clk 0:02:50]} 6. Nc3 {[%clk 0:03:01]}  Nxd5 {[%clk 0:02:50]} 7. Bc4 {[%clk 0:03:01]}  Be6 {[%clk 0:02:39]} 8. Qb3 {[%clk 0:02:59]}  Nf4 {[%clk 0:02:31]} 9. d4 {[%clk 0:02:54]}  Nd3+ {[%clk 0:02:24]} 10. Ke2 {[%clk 0:02:54]}  Bxc4 {[%clk 0:02:16]} 11. Qxc4 {[%clk 0:02:53]}  Nxc1+ {[%clk 0:02:17]} 12. Raxc1 {[%clk 0:02:54]}  g6 {[%clk 0:01:53]} 13. Ne5 {[%clk 0:02:53]}  e6 {[%clk 0:01:53]} 14. d5 {[%clk 0:02:46]}  Bg7 {[%clk 0:01:53]} 15. Nxf7 {[%clk 0:02:40]}  Kxf7 {[%clk 0:01:49]} 16. dxe6+ {[%clk 0:02:40]}  Kf8 {[%clk 0:00:44]} 17. Rhd1 {[%clk 0:02:38]}  Qe8 {[%clk 0:00:40]} 18. Qf4+ {[%clk 0:02:23]}  Kg8 {[%clk 0:00:26]} 19. Rd8 {[%clk 0:02:22]} 1-0


[Site "https://www.chess.com"]

[Event "Titled Tuesday Blitz July 18 Late 2023"]
[White "Andreikin, Dmitry"]
[Black "Gadimbayli, Abdulla"]
[WhiteFideId "4158814"]
[BlackFideId "13404938"]
[WhiteElo "2994"]
[BlackElo "2851"]
[Result "1-0"]
[Round "9"]
[TimeControl "180+2"]
[Date "2023.07.18"]
[WhiteClock "0:00:06"]
[BlackClock "0:00:03"]
[Board "10"]

1. c4 {[%clk 0:03:00]}  Nf6 {[%clk 0:02:59]} 2. Nc3 {[%clk 0:03:00]}  g6 {[%clk 0:03:00]} 3. e4 {[%clk 0:03:00]}  d6 {[%clk 0:03:00]} 4. d4 {[%clk 0:02:59]}  Bg7 {[%clk 0:03:01]} 5. h3 {[%clk 0:03:00]}  O-O {[%clk 0:03:01]} 6. Be3 {[%clk 0:03:00]}  c6 {[%clk 0:03:02]} 7. Nf3 {[%clk 0:02:58]}  Na6 {[%clk 0:03:02]} 8. Be2 {[%clk 0:02:57]}  Re8 {[%clk 0:03:03]} 9. O-O {[%clk 0:02:56]}  Qc7 {[%clk 0:02:59]} 10. e5 {[%clk 0:02:49]}  dxe5 {[%clk 0:02:59]} 11. dxe5 {[%clk 0:02:50]}  Nd7 {[%clk 0:02:59]} 12. e6 {[%clk 0:02:50]}  fxe6 {[%clk 0:02:59]} 13. Qc2 {[%clk 0:02:48]}  e5 {[%clk 0:02:37]} 14. Rad1 {[%clk 0:02:43]}  Nf6 {[%clk 0:02:37]} 15. c5 {[%clk 0:02:37]}  Nb4 {[%clk 0:02:14]} 16. Qb3+ {[%clk 0:02:21]}  Nbd5 {[%clk 0:02:09]} 17. Rxd5 {[%clk 0:02:17]}  cxd5 {[%clk 0:02:03]} 18. Nxd5 {[%clk 0:02:17]}  Nxd5 {[%clk 0:02:03]} 19. Qxd5+ {[%clk 0:02:17]}  e6 {[%clk 0:02:04]} 20. Qe4 {[%clk 0:02:15]}  Bd7 {[%clk 0:02:02]} 21. Ng5 {[%clk 0:02:06]}  Bc6 {[%clk 0:01:41]} 22. Qh4 {[%clk 0:02:02]}  h6 {[%clk 0:01:40]} 23. Nf3 {[%clk 0:01:45]}  e4 {[%clk 0:01:14]} 24. Nd4 {[%clk 0:01:42]}  Qd8 {[%clk 0:01:12]} 25. Qg3 {[%clk 0:01:29]}  Kh7 {[%clk 0:01:01]} 26. Nxc6 {[%clk 0:01:22]}  bxc6 {[%clk 0:01:02]} 27. Rd1 {[%clk 0:01:22]}  Qe7 {[%clk 0:01:00]} 28. Qg4 {[%clk 0:01:17]}  Rad8 {[%clk 0:00:54]} 29. Qxe4 {[%clk 0:01:17]}  Rd5 {[%clk 0:00:49]} 30. b4 {[%clk 0:01:11]}  Qf7 {[%clk 0:00:48]} 31. Bf3 {[%clk 0:01:06]}  Red8 {[%clk 0:00:41]} 32. Re1 {[%clk 0:01:02]}  Bc3 {[%clk 0:00:32]} 33. Rc1 {[%clk 0:00:53]}  Bd4 {[%clk 0:00:24]} 34. Qh4 {[%clk 0:00:29]}  Bxe3 {[%clk 0:00:21]} 35. fxe3 {[%clk 0:00:30]}  Rg5 {[%clk 0:00:17]} 36. Bxc6 {[%clk 0:00:25]}  Qc7 {[%clk 0:00:15]} 37. Qf4 {[%clk 0:00:21]}  Qxc6 {[%clk 0:00:11]} 38. Qf7+ {[%clk 0:00:21]}  Kh8 {[%clk 0:00:11]} 39. Qf6+ {[%clk 0:00:21]}  Kh7 {[%clk 0:00:12]} 40. Qe7+ {[%clk 0:00:21]}  Kg8 {[%clk 0:00:10]} 41. Qxd8+ {[%clk 0:00:21]}  Kh7 {[%clk 0:00:11]} 42. Qe7+ {[%clk 0:00:21]}  Kg8 {[%clk 0:00:11]} 43. Rc2 {[%clk 0:00:18]}  Qe4 {[%clk 0:00:11]} 44. Qe8+ {[%clk 0:00:14]}  Kg7 {[%clk 0:00:10]} 45. Qd7+ {[%clk 0:00:14]}  Kg8 {[%clk 0:00:10]} 46. Qd8+ {[%clk 0:00:15]}  Kh7 {[%clk 0:00:11]} 47. Qe7+ {[%clk 0:00:11]}  Kg8 {[%clk 0:00:10]} 48. Rf2 {[%clk 0:00:12]}  Qxe3 {[%clk 0:00:10]} 49. Qf8+ {[%clk 0:00:11]}  Kh7 {[%clk 0:00:10]} 50. Qf7+ {[%clk 0:00:11]}  Kh8 {[%clk 0:00:11]} 51. Qf8+ {[%clk 0:00:10]}  Kh7 {[%clk 0:00:11]} 52. Kh1 {[%clk 0:00:10]}  Rf5 {[%clk 0:00:08]} 53. Qe7+ {[%clk 0:00:09]}  Kg8 {[%clk 0:00:08]} 54. Qd8+ {[%clk 0:00:09]}  Kh7 {[%clk 0:00:07]} 55. Qd7+ {[%clk 0:00:09]}  Kg8 {[%clk 0:00:08]} 56. Rxf5 {[%clk 0:00:09]}  gxf5 {[%clk 0:00:09]} 57. Qc8+ {[%clk 0:00:07]}  Kf7 {[%clk 0:00:09]} 58. Qc7+ {[%clk 0:00:07]}  Kg6 {[%clk 0:00:08]} 59. Qd6 {[%clk 0:00:06]}  f4 {[%clk 0:00:07]} 60. Qd1 {[%clk 0:00:07]}  Qc3 {[%clk 0:00:05]} 61. Qg4+ {[%clk 0:00:06]}  Kh7 {[%clk 0:00:05]} 62. Qxf4 {[%clk 0:00:06]}  e5 {[%clk 0:00:06]} 63. Qe4+ {[%clk 0:00:06]}  Kg7 {[%clk 0:00:06]} 64. Kh2 {[%clk 0:00:06]}  Kf6 {[%clk 0:00:03]} 65. Qf3+ {[%clk 0:00:06]} 1-0


[Site "https://www.chess.com"]

[Event "Titled Tuesday Blitz July 18 Late 2023"]
[White "Makarian, Rudik"]
[Black "Perez Ponsa, Federico"]
[WhiteFideId "44105681"]
[BlackFideId "117927"]
[WhiteElo "2991"]
[BlackElo "2842"]
[Result "1-0"]
[Round "9"]
[TimeControl "180+2"]
[Date "2023.07.18"]
[WhiteClock "0:01:09"]
[BlackClock "0:01:25"]
[Board "11"]

1. d4 {[%clk 0:02:59]}  Nf6 {[%clk 0:02:29]} 2. c4 {[%clk 0:02:59]}  g6 {[%clk 0:02:28]} 3. Nc3 {[%clk 0:02:58]}  Bg7 {[%clk 0:02:29]} 4. e4 {[%clk 0:02:59]}  d6 {[%clk 0:02:30]} 5. Be2 {[%clk 0:03:00]}  O-O {[%clk 0:02:31]} 6. Be3 {[%clk 0:03:01]}  Nc6 {[%clk 0:02:30]} 7. Nf3 {[%clk 0:03:00]}  e5 {[%clk 0:02:27]} 8. d5 {[%clk 0:03:00]}  Ne7 {[%clk 0:02:22]} 9. Nd2 {[%clk 0:03:00]}  Nd7 {[%clk 0:02:20]} 10. O-O {[%clk 0:02:49]}  f5 {[%clk 0:02:21]} 11. f3 {[%clk 0:02:49]}  f4 {[%clk 0:02:18]} 12. Bf2 {[%clk 0:02:48]}  g5 {[%clk 0:02:18]} 13. b4 {[%clk 0:02:47]}  h5 {[%clk 0:02:15]} 14. c5 {[%clk 0:02:46]}  Nf6 {[%clk 0:02:03]} 15. Nc4 {[%clk 0:02:39]}  Ne8 {[%clk 0:02:03]} 16. a4 {[%clk 0:02:23]}  Ng6 {[%clk 0:01:59]} 17. a5 {[%clk 0:02:13]}  Rf7 {[%clk 0:01:57]} 18. b5 {[%clk 0:02:03]}  Bf8 {[%clk 0:01:56]} 19. c6 {[%clk 0:02:03]}  Nf6 {[%clk 0:01:55]} 20. b6 {[%clk 0:01:54]}  axb6 {[%clk 0:01:50]} 21. axb6 {[%clk 0:01:54]}  Rxa1 {[%clk 0:01:49]} 22. Qxa1 {[%clk 0:01:55]}  g4 {[%clk 0:01:49]} 23. Qa8 {[%clk 0:01:46]}  g3 {[%clk 0:01:48]} 24. cxb7 {[%clk 0:01:34]}  Nxe4 {[%clk 0:01:32]} 25. Nxe4 {[%clk 0:01:09]}  Qh4 {[%clk 0:01:32]} 26. hxg3 {[%clk 0:01:09]}  fxg3 {[%clk 0:01:25]} 27. Bxg3 {[%clk 0:01:09]} 1-0


[Site "https://www.chess.com"]

[Event "Titled Tuesday Blitz July 18 Late 2023"]
[White "Oparin, Grigoriy"]
[Black "Meshkovs, Nikita"]
[WhiteFideId "24125890"]
[BlackFideId "11602740"]
[WhiteElo "2982"]
[BlackElo "2772"]
[Result "1-0"]
[Round "9"]
[TimeControl "180+2"]
[Date "2023.07.18"]
[WhiteClock "0:00:57"]
[BlackClock "0:00:06"]
[Board "12"]

1. Nf3 {[%clk 0:03:00]}  Nf6 {[%clk 0:02:57]} 2. g3 {[%clk 0:03:01]}  d5 {[%clk 0:02:55]} 3. Bg2 {[%clk 0:03:02]}  e6 {[%clk 0:02:53]} 4. c4 {[%clk 0:03:02]}  Be7 {[%clk 0:02:46]} 5. O-O {[%clk 0:03:01]}  O-O {[%clk 0:02:45]} 6. d4 {[%clk 0:03:02]}  Nbd7 {[%clk 0:02:34]} 7. Qc2 {[%clk 0:03:00]}  c6 {[%clk 0:02:32]} 8. Nbd2 {[%clk 0:02:57]}  b6 {[%clk 0:02:21]} 9. b3 {[%clk 0:02:57]}  Bb7 {[%clk 0:02:19]} 10. Bb2 {[%clk 0:02:55]}  Rc8 {[%clk 0:02:17]} 11. Rfd1 {[%clk 0:02:54]}  Re8 {[%clk 0:02:08]} 12. Rac1 {[%clk 0:02:54]}  Qc7 {[%clk 0:02:04]} 13. e4 {[%clk 0:02:54]}  dxe4 {[%clk 0:02:03]} 14. Nxe4 {[%clk 0:02:55]}  Nxe4 {[%clk 0:02:03]} 15. Qxe4 {[%clk 0:02:56]}  Nf6 {[%clk 0:02:02]} 16. Qe2 {[%clk 0:02:50]}  c5 {[%clk 0:01:58]} 17. Rd3 {[%clk 0:02:48]}  cxd4 {[%clk 0:01:27]} 18. Nxd4 {[%clk 0:02:49]}  Bxg2 {[%clk 0:01:26]} 19. Kxg2 {[%clk 0:02:50]}  Red8 {[%clk 0:01:17]} 20. Rcd1 {[%clk 0:02:50]}  Qb7+ {[%clk 0:01:12]} 21. Kg1 {[%clk 0:02:47]}  a6 {[%clk 0:01:03]} 22. h4 {[%clk 0:02:33]}  h6 {[%clk 0:00:57]} 23. a4 {[%clk 0:02:31]}  Kf8 {[%clk 0:00:54]} 24. Nf3 {[%clk 0:02:15]}  Rxd3 {[%clk 0:00:53]} 25. Rxd3 {[%clk 0:02:16]}  Qe4 {[%clk 0:00:46]} 26. Qd1 {[%clk 0:02:15]}  Qa8 {[%clk 0:00:23]} 27. Ne5 {[%clk 0:02:11]}  Rd8 {[%clk 0:00:22]} 28. Nd7+ {[%clk 0:01:48]}  Nxd7 {[%clk 0:00:17]} 29. Rxd7 {[%clk 0:01:49]}  Qc8 {[%clk 0:00:12]} 30. Rxd8+ {[%clk 0:01:48]}  Qxd8 {[%clk 0:00:12]} 31. Qxd8+ {[%clk 0:01:48]}  Bxd8 {[%clk 0:00:13]} 32. h5 {[%clk 0:01:48]}  Bf6 {[%clk 0:00:05]} 33. Bxf6 {[%clk 0:01:20]}  gxf6 {[%clk 0:00:06]} 34. b4 {[%clk 0:01:20]}  Ke7 {[%clk 0:00:06]} 35. Kf1 {[%clk 0:01:20]}  a5 {[%clk 0:00:03]} 36. c5 {[%clk 0:00:57]}  axb4 {[%clk 0:00:02]} 37. cxb6 {[%clk 0:00:57]}  Kd7 {[%clk 0:00:03]} 38. Ke2 {[%clk 0:00:57]}  Kc6 {[%clk 0:00:03]} 39. a5 {[%clk 0:00:58]}  f5 {[%clk 0:00:03]} 40. Kd3 {[%clk 0:00:57]}  e5 {[%clk 0:00:03]} 41. Kc4 {[%clk 0:00:57]}  f4 {[%clk 0:00:03]} 42. gxf4 {[%clk 0:00:56]}  b3 {[%clk 0:00:04]} 43. Kxb3 {[%clk 0:00:56]}  exf4 {[%clk 0:00:04]} 44. Kc4 {[%clk 0:00:57]}  f5 {[%clk 0:00:05]} 45. Kd4 {[%clk 0:00:57]}  f3 {[%clk 0:00:05]} 46. Ke5 {[%clk 0:00:57]}  f4 {[%clk 0:00:06]} 47. Kf5 {[%clk 0:00:57]} 1-0


[Site "https://www.chess.com"]

[Event "Titled Tuesday Blitz July 18 Late 2023"]
[White "He, Anthony"]
[Black "Fantastic_Power"]
[WhiteFideId "2088215"]
[WhiteElo "2972"]
[BlackElo "2756"]
[Result "1-0"]
[Round "9"]
[TimeControl "180+2"]
[Date "2023.07.18"]
[WhiteClock "0:01:26"]
[BlackClock "0:01:08"]
[Board "13"]

1. e4 {[%clk 0:02:59]}  c5 {[%clk 0:02:59]} 2. Nf3 {[%clk 0:02:59]}  Nc6 {[%clk 0:02:59]} 3. d4 {[%clk 0:02:59]}  cxd4 {[%clk 0:03:00]} 4. Nxd4 {[%clk 0:02:59]}  Nf6 {[%clk 0:03:01]} 5. Nc3 {[%clk 0:03:00]}  e6 {[%clk 0:03:01]} 6. Ndb5 {[%clk 0:02:59]}  Bc5 {[%clk 0:02:55]} 7. Nd6+ {[%clk 0:02:59]}  Ke7 {[%clk 0:02:55]} 8. Nxc8+ {[%clk 0:02:59]}  Rxc8 {[%clk 0:02:55]} 9. Bd3 {[%clk 0:02:57]}  h6 {[%clk 0:02:53]} 10. a3 {[%clk 0:02:52]}  a6 {[%clk 0:02:52]} 11. O-O {[%clk 0:02:46]}  g5 {[%clk 0:02:52]} 12. Kh1 {[%clk 0:02:45]}  Qc7 {[%clk 0:02:27]} 13. f4 {[%clk 0:02:41]}  gxf4 {[%clk 0:02:27]} 14. Bxf4 {[%clk 0:02:41]}  Bd6 {[%clk 0:02:28]} 15. Bxd6+ {[%clk 0:02:31]}  Qxd6 {[%clk 0:02:28]} 16. Qf3 {[%clk 0:02:31]}  Qe5 {[%clk 0:02:27]} 17. Rae1 {[%clk 0:02:30]}  Qg5 {[%clk 0:02:21]} 18. Nd5+ {[%clk 0:02:11]}  exd5 {[%clk 0:02:20]} 19. exd5+ {[%clk 0:02:06]}  Ne5 {[%clk 0:02:19]} 20. d6+ {[%clk 0:02:06]}  Ke6 {[%clk 0:01:44]} 21. Qxb7 {[%clk 0:01:44]}  Rhg8 {[%clk 0:01:29]} 22. Rf5 {[%clk 0:01:26]}  Qxf5 {[%clk 0:01:21]} 23. Qb3+ {[%clk 0:01:26]}  Rc4 {[%clk 0:01:08]} 24. Qxc4+ {[%clk 0:01:26]} 1-0


[Site "https://www.chess.com"]

[Event "Titled Tuesday Blitz July 18 Late 2023"]
[White "Alex_Sahakyan2006"]
[Black "Grigoriants, Sergey"]
[BlackFideId "4130804"]
[WhiteElo "2687"]
[BlackElo "2915"]
[Result "1-0"]
[Round "9"]
[TimeControl "180+2"]
[Date "2023.07.18"]
[WhiteClock "0:00:04"]
[BlackClock "0:00:00"]
[Board "18"]

1. e4 {[%clk 0:02:58]}  e5 {[%clk 0:02:56]} 2. Nf3 {[%clk 0:02:57]}  Nc6 {[%clk 0:02:55]} 3. Bb5 {[%clk 0:02:57]}  a6 {[%clk 0:02:55]} 4. Ba4 {[%clk 0:02:55]}  Nf6 {[%clk 0:02:55]} 5. O-O {[%clk 0:02:55]}  b5 {[%clk 0:02:55]} 6. Bb3 {[%clk 0:02:55]}  Bc5 {[%clk 0:02:56]} 7. a4 {[%clk 0:02:53]}  Rb8 {[%clk 0:02:54]} 8. axb5 {[%clk 0:02:53]}  axb5 {[%clk 0:02:53]} 9. Nc3 {[%clk 0:02:46]}  d6 {[%clk 0:02:48]} 10. h3 {[%clk 0:02:44]}  h6 {[%clk 0:02:48]} 11. d3 {[%clk 0:02:44]}  O-O {[%clk 0:02:47]} 12. Nd5 {[%clk 0:02:44]}  Be6 {[%clk 0:02:43]} 13. Re1 {[%clk 0:02:14]}  Bxd5 {[%clk 0:02:34]} 14. exd5 {[%clk 0:02:14]}  Nd4 {[%clk 0:02:31]} 15. Nxd4 {[%clk 0:02:13]}  Bxd4 {[%clk 0:02:32]} 16. c3 {[%clk 0:02:12]}  Bb6 {[%clk 0:02:30]} 17. d4 {[%clk 0:02:09]}  exd4 {[%clk 0:02:19]} 18. cxd4 {[%clk 0:02:09]}  Qd7 {[%clk 0:02:20]} 19. Qd3 {[%clk 0:01:50]}  Ra8 {[%clk 0:02:07]} 20. Bd2 {[%clk 0:01:33]}  Rxa1 {[%clk 0:02:03]} 21. Rxa1 {[%clk 0:01:32]}  Re8 {[%clk 0:02:03]} 22. Be3 {[%clk 0:01:01]}  Ne4 {[%clk 0:01:44]} 23. Qc2 {[%clk 0:00:52]}  f5 {[%clk 0:01:19]} 24. Qc6 {[%clk 0:00:49]}  Qf7 {[%clk 0:01:19]} 25. Bc2 {[%clk 0:00:36]}  g6 {[%clk 0:00:58]} 26. Ra8 {[%clk 0:00:22]}  Rxa8 {[%clk 0:00:51]} 27. Qxa8+ {[%clk 0:00:23]}  Kg7 {[%clk 0:00:51]} 28. Qc6 {[%clk 0:00:20]}  Nf6 {[%clk 0:00:27]} 29. Bb3 {[%clk 0:00:18]}  Ne4 {[%clk 0:00:25]} 30. Bc2 {[%clk 0:00:14]}  Nf6 {[%clk 0:00:16]} 31. Bb3 {[%clk 0:00:14]}  Ne4 {[%clk 0:00:10]} 32. Qc1 {[%clk 0:00:15]}  Qf6 {[%clk 0:00:07]} 33. Bxh6+ {[%clk 0:00:14]}  Kh7 {[%clk 0:00:07]} 34. Be3 {[%clk 0:00:14]}  f4 {[%clk 0:00:05]} 35. Bxf4 {[%clk 0:00:12]}  Bxd4 {[%clk 0:00:02]} 36. Qxc7+ {[%clk 0:00:12]}  Kh8 {[%clk 0:00:02]} 37. Qc8+ {[%clk 0:00:10]}  Kg7 {[%clk 0:00:03]} 38. Qd7+ {[%clk 0:00:08]}  Kf8 {[%clk 0:00:03]} 39. Bh6+ {[%clk 0:00:08]}  Kg8 {[%clk 0:00:03]} 40. Qe6+ {[%clk 0:00:05]}  Kh7 {[%clk 0:00:02]} 41. Qxf6 {[%clk 0:00:05]}  Bxf6 {[%clk 0:00:01]} 42. Bc1 {[%clk 0:00:06]}  Bd4 {[%clk 0:00:01]} 43. Kf1 {[%clk 0:00:03]}  Nxf2 {[%clk 0:00:02]} 44. Ke2 {[%clk 0:00:02]}  Bc5 {[%clk 0:00:02]} 45. Bc2 {[%clk 0:00:02]}  Kg7 {[%clk 0:00:02]} 46. Bf4 {[%clk 0:00:03]}  Kf6 {[%clk 0:00:01]} 47. b4 {[%clk 0:00:03]}  Bb6 {[%clk 0:00:01]} 48. Bxd6 {[%clk 0:00:04]}  g5 {[%clk 0:00:00]} 49. Bc5 {[%clk 0:00:04]} 1-0


[Site "https://www.chess.com"]

[Event "Titled Tuesday Blitz July 18 Late 2023"]
[White "Philippe, Guillaume"]
[Black "Zhigalko, Sergei"]
[WhiteFideId "36048763"]
[BlackFideId "13502956"]
[WhiteElo "2552"]
[BlackElo "2891"]
[Result "1/2-1/2"]
[Round "9"]
[TimeControl "180+2"]
[Date "2023.07.18"]
[WhiteClock "0:00:15"]
[BlackClock "0:00:03"]
[Board "19"]

1. e4 {[%clk 0:03:00]}  c5 {[%clk 0:02:59]} 2. Nf3 {[%clk 0:03:00]}  Nc6 {[%clk 0:02:59]} 3. d4 {[%clk 0:02:57]}  cxd4 {[%clk 0:03:00]} 4. Nxd4 {[%clk 0:02:58]}  Nf6 {[%clk 0:03:01]} 5. Nc3 {[%clk 0:02:56]}  e5 {[%clk 0:03:01]} 6. Ndb5 {[%clk 0:02:54]}  d6 {[%clk 0:03:01]} 7. Nd5 {[%clk 0:02:51]}  Nxd5 {[%clk 0:03:00]} 8. exd5 {[%clk 0:02:51]}  Nb8 {[%clk 0:03:01]} 9. c4 {[%clk 0:02:47]}  Be7 {[%clk 0:03:01]} 10. c5 {[%clk 0:02:43]}  O-O {[%clk 0:03:00]} 11. Bd3 {[%clk 0:02:36]}  a6 {[%clk 0:02:53]} 12. Nxd6 {[%clk 0:02:32]}  Bxd6 {[%clk 0:02:54]} 13. cxd6 {[%clk 0:02:31]}  Qxd6 {[%clk 0:02:54]} 14. O-O {[%clk 0:02:28]}  Nd7 {[%clk 0:02:54]} 15. Be3 {[%clk 0:02:16]}  Rd8 {[%clk 0:02:51]} 16. Qc2 {[%clk 0:02:12]}  Nf6 {[%clk 0:02:45]} 17. Rfd1 {[%clk 0:02:05]}  Bg4 {[%clk 0:02:43]} 18. f3 {[%clk 0:02:02]}  Rac8 {[%clk 0:02:28]} 19. Qb3 {[%clk 0:01:59]}  Bh5 {[%clk 0:01:53]} 20. Bf5 {[%clk 0:01:42]}  Nd7 {[%clk 0:01:33]} 21. Rac1 {[%clk 0:01:34]}  Rxc1 {[%clk 0:00:29]} 22. Rxc1 {[%clk 0:01:35]}  Bg6 {[%clk 0:00:29]} 23. Bh3 {[%clk 0:01:29]}  Nf6 {[%clk 0:00:23]} 24. Qxb7 {[%clk 0:01:09]}  Nxd5 {[%clk 0:00:21]} 25. Rd1 {[%clk 0:01:01]}  h6 {[%clk 0:00:13]} 26. Bf2 {[%clk 0:00:36]}  Kh7 {[%clk 0:00:12]} 27. a3 {[%clk 0:00:31]}  e4 {[%clk 0:00:11]} 28. fxe4 {[%clk 0:00:28]}  Bxe4 {[%clk 0:00:12]} 29. Qxf7 {[%clk 0:00:25]}  Rf8 {[%clk 0:00:11]} 30. Qd7 {[%clk 0:00:22]}  Qf4 {[%clk 0:00:11]} 31. Qa7 {[%clk 0:00:18]}  Qg5 {[%clk 0:00:08]} 32. Qd4 {[%clk 0:00:16]}  Re8 {[%clk 0:00:05]} 33. Qc5 {[%clk 0:00:17]}  Re5 {[%clk 0:00:04]} 34. Bg3 {[%clk 0:00:14]}  Nf4 {[%clk 0:00:04]} 35. Bxf4 {[%clk 0:00:14]}  Qxf4 {[%clk 0:00:03]} 36. Qf2 {[%clk 0:00:13]}  Qg5 {[%clk 0:00:03]} 37. Qg3 {[%clk 0:00:10]}  Qe7 {[%clk 0:00:03]} 38. Re1 {[%clk 0:00:10]}  Qa7+ {[%clk 0:00:02]} 39. Qf2 {[%clk 0:00:10]}  Qe7 {[%clk 0:00:03]} 40. Rxe4 {[%clk 0:00:10]}  Rxe4 {[%clk 0:00:02]} 41. Bf5+ {[%clk 0:00:11]}  Kh8 {[%clk 0:00:02]} 42. Bxe4 {[%clk 0:00:12]}  Qxe4 {[%clk 0:00:03]} 43. h3 {[%clk 0:00:12]}  Kh7 {[%clk 0:00:03]} 44. Kh2 {[%clk 0:00:13]}  Qe5+ {[%clk 0:00:03]} 45. Qg3 {[%clk 0:00:14]}  Qxb2 {[%clk 0:00:03]} 46. Qd3+ {[%clk 0:00:14]}  Kh8 {[%clk 0:00:03]} 47. Qxa6 {[%clk 0:00:15]}  Qe5+ {[%clk 0:00:03]} 48. Kg1 {[%clk 0:00:15]}  Qe1+ {[%clk 0:00:03]} 49. Kh2 {[%clk 0:00:14]}  Qe5+ {[%clk 0:00:03]} 50. Kg1 {[%clk 0:00:14]}  Qe1+ {[%clk 0:00:03]} 51. Kh2 {[%clk 0:00:15]}  Qe5+ {[%clk 0:00:03]} 1/2-1/2


[Site "https://www.chess.com"]

[Event "Titled Tuesday Blitz July 18 Late 2023"]
[White "Karacsonyi, Gellert"]
[Black "Jimenez Almeida, Luis David"]
[WhiteFideId "764620"]
[BlackFideId "22242244"]
[WhiteElo "2815"]
[BlackElo "2597"]
[Result "1-0"]
[Round "9"]
[TimeControl "180+2"]
[Date "2023.07.18"]
[WhiteClock "0:01:26"]
[BlackClock "0:00:48"]
[Board "23"]

1. e4 {[%clk 0:03:00]}  c5 {[%clk 0:02:59]} 2. Nf3 {[%clk 0:03:00]}  e6 {[%clk 0:03:00]} 3. d4 {[%clk 0:03:01]}  cxd4 {[%clk 0:03:00]} 4. Nxd4 {[%clk 0:03:01]}  a6 {[%clk 0:03:00]} 5. c4 {[%clk 0:03:01]}  Nc6 {[%clk 0:02:59]} 6. Nc3 {[%clk 0:03:01]}  Nf6 {[%clk 0:02:58]} 7. Be2 {[%clk 0:02:59]}  Bb4 {[%clk 0:02:55]} 8. Nxc6 {[%clk 0:02:59]}  bxc6 {[%clk 0:02:55]} 9. Qd3 {[%clk 0:02:57]}  e5 {[%clk 0:02:52]} 10. O-O {[%clk 0:02:56]}  O-O {[%clk 0:02:49]} 11. Bg5 {[%clk 0:02:55]}  h6 {[%clk 0:02:47]} 12. Bh4 {[%clk 0:02:54]}  Be7 {[%clk 0:02:42]} 13. Rad1 {[%clk 0:02:50]}  Rb8 {[%clk 0:02:40]} 14. b3 {[%clk 0:02:49]}  Qa5 {[%clk 0:02:30]} 15. Kh1 {[%clk 0:02:48]}  d6 {[%clk 0:02:26]} 16. Bxf6 {[%clk 0:02:44]}  Bxf6 {[%clk 0:02:27]} 17. Na4 {[%clk 0:02:27]}  Rd8 {[%clk 0:02:23]} 18. Qg3 {[%clk 0:02:23]}  Be6 {[%clk 0:02:17]} 19. Bg4 {[%clk 0:02:21]}  Bxc4 {[%clk 0:02:09]} 20. Rfe1 {[%clk 0:02:11]}  Bb5 {[%clk 0:01:57]} 21. Qc3 {[%clk 0:02:10]}  Qc7 {[%clk 0:01:41]} 22. Nb2 {[%clk 0:02:09]}  Qe7 {[%clk 0:01:35]} 23. a4 {[%clk 0:02:08]}  Bxa4 {[%clk 0:01:17]} 24. Nxa4 {[%clk 0:02:05]}  d5 {[%clk 0:01:17]} 25. Qxc6 {[%clk 0:01:55]}  Rxb3 {[%clk 0:01:13]} 26. exd5 {[%clk 0:01:46]}  Rd6 {[%clk 0:01:04]} 27. Qc8+ {[%clk 0:01:45]}  Kh7 {[%clk 0:01:04]} 28. Nc5 {[%clk 0:01:40]}  Rb4 {[%clk 0:01:01]} 29. Ne4 {[%clk 0:01:38]}  Rdb6 {[%clk 0:00:57]} 30. d6 {[%clk 0:01:35]}  Qd8 {[%clk 0:00:54]} 31. Nxf6+ {[%clk 0:01:33]}  Qxf6 {[%clk 0:00:53]} 32. Qf5+ {[%clk 0:01:24]}  Qxf5 {[%clk 0:00:51]} 33. Bxf5+ {[%clk 0:01:25]}  g6 {[%clk 0:00:48]} 34. d7 {[%clk 0:01:26]} 1-0


[Site "https://www.chess.com"]